bitfinex/quotes_BTCUSD_20241110
["timestamp","ask_amount","ask_price","bid_price","bid_amount"]
[1731277519740,0.245911,81330.0,81310.0,0.24597]
[1731277519741,0.37185621,81329.0,81312.0,0.0047]
[1731277520001,0.122974,81318.0,81310.0,0.127685]
[1731277520198,0.245954,81316.0,81315.0,0.18441111]
[1731277520445,0.245954,81316.0,81306.0,0.18441111]
[1731277520446,0.12299,81307.0,81306.0,0.18441111]
[1731277520628,0.122983,81312.0,81306.0,0.18441111]
[1731277520841,0.122958,81329.0,81321.0,0.122968]
[1731277521005,0.18441111,81326.0,81322.0,0.0047]
[1731277521261,0.1309,81354.0,81307.0,0.12594221]
[1731277521262,0.18441111,81340.0,81330.0,0.0047]
[1731277521490,0.1,81348.0,81330.0,0.0047]
[1731277521491,0.122946,81337.0,81330.0,0.0047]
[1731277521774,0.1,81346.0,81330.0,0.0047]
[1731277521987,0.122951,81333.0,81330.0,0.0047]
[1731277522210,0.245869,81344.0,81323.0,0.0047]
[1731277522414,0.122953,81332.0,81330.0,0.0047]
[1731277522659,0.122972,81320.0,81316.0,0.0047]
[1731277522870,0.122972,81319.0,81318.0,0.18441111]
[1731277523033,0.18441111,81329.0,81310.0,0.0047]
[1731277523258,0.1,81319.0,81299.0,0.0047]
[1731277523419,0.005,81323.0,81299.0,0.0047]
[1731277523420,0.122983,81312.0,81311.0,0.18441111]
[1731277523614,0.12594221,81312.0,81299.0,0.0047]
[1731277523843,0.122989,81308.0,81307.0,0.18441111]
[1731277524046,0.122992,81307.0,81299.0,0.0047]
[1731277524257,0.122982,81313.0,81309.0,0.0047]
[1731277524465,0.18441111,81330.0,81313.0,0.0047]
[1731277524680,0.122962,81326.0,81321.0,0.0047]
[1731277524886,0.122964,81325.0,81321.0,0.0047]
[1731277525320,0.245917,81328.0,81321.0,0.0047]
[1731277525321,0.122967,81322.0,81321.0,0.0047]
[1731277525530,0.24592,81327.0,81321.0,0.0047]
[1731277526018,0.31219919,81326.0,81298.0,0.0047]
[1731277526143,0.122989,81308.0,81307.0,0.18441111]
[1731277526377,0.122989,81308.0,81294.0,0.0047]
[1731277526378,0.123016,81290.0,81289.0,0.18441111]
[1731277526587,0.123016,81290.0,81280.0,0.18441111]
[1731277526588,0.123029,81281.0,81280.0,0.18441111]
[1731277526822,0.123029,81281.0,81270.0,0.18580311]
[1731277526823,0.00184587,81282.0,81270.0,0.18580311]
[1731277527040,0.1,81301.0,81270.0,0.18580311]
[1731277527041,0.123045,81271.0,81270.0,0.18580311]
[1731277527464,0.24898721,81271.0,81270.0,0.001392]
[1731277527677,0.123045,81271.0,81270.0,0.001392]
[1731277528302,0.18941111,81309.0,81282.0,0.0047]
[1731277528513,0.18441111,81291.0,81282.0,0.0047]
[1731277528726,0.18441111,81309.0,81270.0,0.001392]
[1731277528727,0.1,81287.0,81270.0,0.001392]
[1731277528975,0.123045,81271.0,81270.0,0.001392]
[1731277529831,0.25083308,81271.0,81270.0,0.001392]
[1731277530733,0.24898721,81271.0,81270.0,0.001392]
[1731277531658,0.24892721,81271.0,81270.0,0.001392]
[1731277531870,0.122985,81271.0,81270.0,0.001392]
[1731277532311,3.122985,81271.0,81270.0,0.001392]
[1731277532759,3.122925,81271.0,81270.0,0.001392]
[1731277533294,3.122865,81271.0,81270.0,0.001392]
[1731277533707,3.122805,81271.0,81270.0,0.001392]
[1731277534347,3.122745,81271.0,81270.0,0.001392]
[1731277534699,3.24868721,81271.0,81270.0,0.001392]
[1731277534883,3.24862721,81271.0,81270.0,0.001392]
[1731277535361,3.24856721,81271.0,81270.0,0.001392]
[1731277535994,3.24935021,81271.0,81270.0,0.001392]
[1731277536387,3.34929021,81271.0,81270.0,0.001392]
[1731277536769,3.34923021,81271.0,81270.0,0.001392]
[1731277537373,3.34947021,81271.0,81270.0,0.001392]
[1731277538020,3.34947021,81271.0,81250.0,0.05]
[1731277538021,0.123075,81251.0,81250.0,0.05]
[1731277538204,0.24901721,81251.0,81250.0,0.05]
[1731277538515,0.25080308,81251.0,81250.0,0.05]
[1731277538920,0.25104308,81251.0,81250.0,0.0359517]
[1731277539132,0.25104308,81251.0,81239.0,0.001392]
[1731277539133,0.123092,81240.0,81239.0,0.001392]
[1731277539346,0.25088008,81240.0,81239.0,0.001392]
[1731277539540,0.25082008,81240.0,81239.0,0.001392]
[1731277539920,0.25076008,81240.0,81239.0,0.001392]
[1731277540509,0.123048,81229.0,81228.0,0.03483895]
[1731277540722,0.35113608,81229.0,81228.0,0.02320868]
[1731277540925,0.12312,81221.0,81220.0,0.03484944]
[1731277541154,0.25084808,81221.0,81220.0,0.03484944]
[1731277541596,0.246213,81231.0,81220.0,0.03484944]
[1731277541597,0.18441111,81243.0,81220.0,0.03484944]
[1731277541766,0.12287964,81218.0,81217.0,0.05225843]
[1731277541908,0.123125,81218.0,81217.0,0.05225843]
[1731277542108,0.123065,81218.0,81217.0,0.05225843]
[1731277542313,0.24900721,81218.0,81217.0,0.05225843]
[1731277542792,0.35085308,81218.0,81217.0,0.05225843]
[1731277542915,0.34924721,81218.0,81217.0,0.03986914]
[1731277543118,0.223368,81216.0,81215.0,0.04493776]
[1731277543371,0.123372,81213.0,81212.0,0.08709739]
[1731277543571,0.35116008,81213.0,81212.0,0.08709739]
[1731277543726,0.123132,81213.0,81212.0,0.08709739]
[1731277544609,0.246448,81232.0,81203.0,0.00476]
[1731277544813,0.12778808,81231.0,81209.0,0.00476]
[1731277545019,0.246243,81221.0,81209.0,0.00476]
[1731277545239,0.12313,81215.0,81209.0,0.00476]
[1731277545474,0.12313,81215.0,81205.0,0.00246262]
[1731277545475,0.00184587,81214.0,81205.0,0.18917111]
[1731277545679,0.123135,81212.0,81205.0,0.18917111]
[1731277545903,0.123135,81212.0,81206.0,0.123143]
[1731277546132,0.123136,81211.0,81205.0,0.00476]
[1731277546417,0.18441111,81231.0,81212.0,0.00476]
[1731277546620,0.246247,81219.0,81207.0,0.00722253]
[1731277546822,0.12313,81215.0,81207.0,0.00476]
[1731277547608,0.00184587,81217.0,81207.0,0.00476]
[1731277548043,0.00184587,81217.0,81212.0,0.001686]
[1731277548044,0.123131,81214.0,81212.0,0.001686]
[1731277548408,0.123132,81213.0,81212.0,0.001686]
[1731277550160,0.25092008,81213.0,81212.0,0.001686]
[1731277550376,3.25092008,81213.0,81212.0,0.001686]
[1731277550542,3.0,81213.0,81212.0,0.001686]
[1731277551529,3.24907421,81213.0,81212.0,0.001686]
[1731277553874,3.12594221,81213.0,81212.0,0.001686]
[1731277554000,3.12594221,81213.0,81212.0,0.12482]
[1731277554001,3.0,81213.0,81212.0,0.12482]
[1731277554239,3.0,81213.0,81212.0,0.001686]
[1731277554856,3.0,81213.0,81212.0,0.12958]
[1731277555065,3.0,81213.0,81212.0,0.26052221]
[1731277555278,2.7938,81213.0,81212.0,0.27052221]
[1731277555518,2.6657,81213.0,81212.0,0.27927267]
[1731277556774,2.5883,81213.0,81212.0,0.27927267]
[1731277558150,2.5883,81213.0,81212.0,0.27427267]
[1731277558392,2.83737421,81213.0,81212.0,0.01045719]
[1731277558553,2.83737421,81213.0,81212.0,0.001686]
[1731277559529,0.73880252,81278.0,81270.0,0.132806]
[1731277559708,0.73880252,81278.0,81270.0,0.142806]
[1731277560023,0.73880252,81278.0,81270.0,0.14158921]
[1731277560279,0.123037,81277.0,81270.0,0.00878321]
[1731277560444,0.123038,81276.0,81270.0,0.00878321]
[1731277560673,0.246065,81280.0,81270.0,0.00878321]
[1731277560875,0.02404569,81292.0,81270.0,0.27253142]
[1731277561073,2.97312865,81271.0,81270.0,0.27753142]
[1731277561213,2.97312865,81271.0,81270.0,0.26874821]
[1731277561412,2.97312865,81271.0,81270.0,0.27751315]
[1731277562677,2.97312865,81271.0,81270.0,0.46996653]
[1731277562678,0.66455086,81271.0,81270.0,0.46996653]
[1731277562850,0.66455086,81271.0,81270.0,0.44925648]
[1731277562851,0.56209658,81271.0,81270.0,0.44925648]
[1731277563232,0.56209658,81271.0,81270.0,0.45893944]
[1731277563431,0.56209658,81271.0,81270.0,0.45693944]
[1731277563633,0.51287858,81271.0,81270.0,0.39922001]
[1731277563834,0.43905158,81271.0,81270.0,0.29922001]
[1731277564101,0.43905158,81271.0,81270.0,0.21560872]
[1731277564263,0.43905158,81271.0,81270.0,0.02278884]
[1731277564408,0.43905158,81271.0,81254.0,0.06945259]
[1731277564409,0.123052,81266.0,81265.0,0.0140239]
[1731277564829,0.123052,81266.0,81242.0,0.005]
[1731277564830,0.00024,81265.0,81249.0,0.00874376]
[1731277565054,0.00024,81265.0,81218.0,0.05209092]
[1731277565055,0.123078,81249.0,81222.0,0.00476]
[1731277565271,0.123078,81249.0,81208.0,0.24628]
[1731277565272,0.12312,81221.0,81202.0,0.00476]
[1731277565481,0.12312,81221.0,81203.0,0.00476]
[1731277565482,0.17242,81221.0,81203.0,0.00476]
[1731277565720,0.17426587,81221.0,81203.0,0.00476]
[1731277565893,0.123108,81229.0,81228.0,0.005]
[1731277566118,0.00184587,81241.0,81230.0,0.00476]
[1731277566332,0.0493,81242.0,81230.0,0.00476]
[1731277566459,0.0493,81242.0,81241.0,0.12785]
[1731277566660,0.18456882,81265.0,81264.0,0.00476]
[1731277566885,0.43905158,81271.0,81270.0,0.01176]
[1731277567092,0.43905158,81271.0,81270.0,0.36874821]
[1731277567093,0.31600658,81271.0,81270.0,0.36874821]
[1731277567304,0.31600658,81271.0,81270.0,0.45821339]
[1731277567305,0.31030658,81271.0,81270.0,0.45821339]
[1731277567496,0.18456882,81301.0,81300.0,0.132761]
[1731277567750,0.18456882,81301.0,81300.0,0.137761]
[1731277567946,0.18456882,81311.0,81310.0,0.00476]
[1731277568155,0.245904,81333.0,81316.0,0.00476]
[1731277568156,0.122967,81323.0,81316.0,0.00476]
[1731277568390,0.245923,81327.0,81300.0,0.246]
[1731277568391,0.24779287,81319.0,81301.0,0.122998]
[1731277568601,0.12594221,81318.0,81297.0,0.00476]
[1731277568911,0.00184587,81317.0,81297.0,0.00476]
[1731277569108,0.122992,81306.0,81297.0,0.00476]
[1731277569463,0.12778808,81305.0,81290.0,0.00476]
[1731277569674,0.12778808,81305.0,81275.0,0.005]
[1731277569675,0.0489,81304.0,81284.0,0.00476]
[1731277569804,0.0489,81304.0,81285.0,0.123023]
[1731277569805,0.245996,81302.0,81285.0,0.123023]
[1731277570005,0.123001,81300.0,81284.0,0.00476]
[1731277570207,0.0489,81304.0,81273.0,0.251083]
[1731277570208,0.0489,81304.0,81296.0,0.00476]
[1731277570673,0.0487,81329.0,81320.0,0.00476]
[1731277570846,0.0487,81329.0,81327.0,0.00476]
[1731277571059,0.0487,81329.0,81304.0,0.01]
[1731277571060,0.31051103,81328.0,81304.0,0.01]
[1731277571259,0.31051103,81328.0,81297.0,0.03478717]
[1731277571260,0.12778808,81327.0,81305.0,0.00476]
[1731277571494,0.245987,81305.0,81296.0,0.00476]
[1731277571716,0.00024,81325.0,81293.0,0.00476]
[1731277571717,0.00184587,81304.0,81293.0,0.00476]
[1731277571936,0.12594221,81303.0,81285.0,0.00476]
[1731277572142,0.12594221,81303.0,81280.0,0.00476]
[1731277572143,0.246045,81286.0,81280.0,0.00476]
[1731277572412,0.00184587,81285.0,81276.0,0.00476]
[1731277572629,0.00184587,81289.0,81276.0,0.00476]
[1731277572849,0.1263,81301.0,81261.0,0.03978717]
[1731277572850,0.31051103,81288.0,81269.0,0.00476]
[1731277573043,0.123042,81273.0,81264.0,0.00476]
[1731277573257,0.246082,81274.0,81264.0,0.00476]
[1731277573258,0.123053,81266.0,81264.0,0.00476]
[1731277573399,0.00184587,81272.0,81264.0,0.00476]
[1731277573609,0.246093,81270.0,81264.0,0.00476]
[1731277573804,0.123051,81267.0,81264.0,0.00476]
[1731277574007,0.18456882,81290.0,81275.0,0.00476]
[1731277574263,0.00184587,81289.0,81280.0,0.00476]
[1731277574487,0.00184587,81289.0,81284.0,0.00476]
[1731277574664,0.00184587,81298.0,81292.0,0.00476]
[1731277574881,0.18456882,81309.0,81300.0,0.00476]
[1731277574882,0.122991,81307.0,81300.0,0.00476]
[1731277575252,0.18456882,81327.0,81300.0,0.00476]
[1731277575253,0.0805,81324.0,81317.0,0.00476]
[1731277575453,0.30754282,81318.0,81317.0,0.00476]
[1731277575663,0.122974,81318.0,81317.0,0.00476]
[1731277576410,0.122972,81319.0,81317.0,0.00476]
[1731277576613,0.245932,81323.0,81317.0,0.00476]
[1731277576871,0.245935,81322.0,81317.0,0.00476]
[1731277577066,0.0805,81324.0,81317.0,0.00476]
[1731277577067,0.203465,81324.0,81317.0,0.00476]
[1731277577267,0.0805,81324.0,81317.0,0.00476]
[1731277577513,0.0805,81324.0,81323.0,0.00476]
[1731277577915,0.0476,81325.0,81324.0,0.00476]
[1731277578266,0.245882,81340.0,81329.0,0.00476]
[1731277578267,0.18456882,81333.0,81329.0,0.00476]
[1731277578469,0.245898,81335.0,81322.0,0.005]
[1731277578470,0.00184587,81334.0,81328.0,0.00476]
[1731277578667,0.132955,81330.0,81329.0,0.00476]
[1731277578887,0.01,81330.0,81329.0,0.00476]
[1731277580076,0.01,81330.0,81313.0,0.005]
[1731277580077,0.122972,81319.0,81318.0,0.00476]
[1731277580972,0.12297,81321.0,81318.0,0.00476]
[1731277581196,0.491834,81328.0,81318.0,0.00476]
[1731277581430,0.122972,81319.0,81318.0,0.00476]
[1731277583265,0.132955,81330.0,81329.0,0.00476]
[1731277584028,0.01,81330.0,81329.0,0.00476]
[1731277584223,0.132955,81330.0,81329.0,0.00476]
[1731277584741,0.132955,81330.0,81318.0,0.00476]
[1731277584742,0.13778808,81330.0,81318.0,0.00476]
[1731277584882,0.13778808,81330.0,81308.0,0.005]
[1731277584883,0.122981,81313.0,81312.0,0.00476]
[1731277585083,0.245926,81325.0,81312.0,0.00476]
[1731277585318,0.122981,81313.0,81312.0,0.00476]
[1731277585485,0.122979,81315.0,81312.0,0.00476]
[1731277585910,0.18456882,81321.0,81318.0,0.00476]
[1731277586090,0.122972,81319.0,81318.0,0.00476]
[1731277586290,0.122971,81320.0,81318.0,0.00476]
[1731277586479,0.245907,81332.0,81318.0,0.00476]
[1731277586480,0.122972,81319.0,81318.0,0.00476]
[1731277586883,0.12297,81321.0,81318.0,0.00476]
[1731277587082,0.122972,81319.0,81318.0,0.00476]
[1731277588552,3.122972,81319.0,81318.0,0.00476]
[1731277588757,3.122912,81319.0,81318.0,0.00476]
[1731277589164,3.122852,81319.0,81318.0,0.00476]
[1731277589707,0.122978,81315.0,81314.0,0.00476]
[1731277590014,3.0,81319.0,81314.0,0.00476]
[1731277590015,0.122977,81316.0,81314.0,0.00476]
[1731277590156,0.122978,81315.0,81314.0,0.00476]
[1731277590369,0.122918,81315.0,81314.0,0.00476]
[1731277590580,0.122974,81318.0,81314.0,0.00476]
[1731277590798,0.122918,81315.0,81314.0,0.00476]
[1731277590979,0.122976,81317.0,81314.0,0.00476]
[1731277591185,0.122976,81317.0,81307.0,0.005]
[1731277591186,3.122972,81319.0,81318.0,0.00476]
[1731277591400,3.122912,81319.0,81318.0,0.00476]
[1731277591603,0.12298,81314.0,81313.0,0.00476]
[1731277592071,0.245956,81316.0,81313.0,0.00476]
[1731277592072,0.122978,81316.0,81313.0,0.00476]
[1731277592285,2.99994,81319.0,81308.0,0.00768403]
[1731277592286,2.99994,81319.0,81316.0,0.00476]
[1731277592505,2.99994,81319.0,81309.0,0.00768403]
[1731277592506,0.122986,81310.0,81309.0,0.00768403]
[1731277592709,0.122938,81302.0,81301.0,0.00476]
[1731277593324,0.122938,81302.0,81287.0,0.01229692]
[1731277593325,0.122951,81293.0,81292.0,0.00768558]
[1731277593497,0.122951,81293.0,81267.0,0.03472769]
[1731277593498,0.169028,81282.0,81281.0,0.01229692]
[1731277593739,0.17194221,81282.0,81281.0,0.00768652]
[1731277593946,0.00024,81298.0,81281.0,0.00768652]
[1731277593947,0.046,81305.0,81304.0,0.00476]
[1731277594147,0.046,81305.0,81295.0,0.005]
[1731277594361,0.00184587,81304.0,81293.0,0.00476]
[1731277594590,0.00184587,81304.0,81286.0,0.00768719]
[1731277594591,0.12296,81287.0,81286.0,0.00768719]
[1731277594805,0.123036,81277.0,81276.0,0.01244719]
[1731277595006,0.123036,81277.0,81276.0,0.00476]
[1731277595233,0.123036,81277.0,81276.0,0.01244719]
[1731277596173,0.246062,81281.0,81276.0,0.01244719]
[1731277596399,0.0824,81275.0,81273.0,0.01229818]
[1731277596630,0.123043,81272.0,81271.0,0.001686]
[1731277596817,0.25083108,81272.0,81271.0,0.001686]
[1731277597210,0.12488887,81272.0,81271.0,0.001686]
[1731277597565,0.123043,81272.0,81271.0,0.001686]
[1731277597914,0.12594221,81272.0,81271.0,0.001686]
[1731277598120,0.24898521,81272.0,81271.0,0.001686]
[1731277598351,0.35898521,81272.0,81271.0,0.001686]
[1731277599213,0.35898521,81272.0,81229.0,0.01230505]
[1731277599214,0.123096,81237.0,81236.0,0.00769065]
[1731277599378,0.123107,81230.0,81229.0,0.00769065]
[1731277599579,0.246189,81239.0,81228.0,0.00769065]
[1731277599859,0.12312,81221.0,81220.0,0.00769193]
[1731277600061,0.12594221,81238.0,81217.0,0.00476]
[1731277600062,0.246237,81223.0,81217.0,0.00476]
[1731277600195,0.123129,81215.0,81214.0,0.001686]
[1731277602701,0.24907121,81215.0,81214.0,0.001686]
[1731277603334,0.24907121,81215.0,81189.0,0.001394]
[1731277603335,0.123167,81190.0,81189.0,0.001394]
[1731277603507,0.123167,81190.0,81189.0,0.006154]
[1731277604476,0.246286,81207.0,81195.0,0.00476]
[1731277604616,0.18456882,81214.0,81202.0,0.00476]
[1731277604617,0.123148,81203.0,81202.0,0.00476]
[1731277604854,0.18456882,81205.0,81202.0,0.00476]
[1731277605067,0.18456882,81205.0,81189.0,0.001394]
[1731277605068,0.12594221,81204.0,81189.0,0.001394]
[1731277605267,0.123167,81190.0,81189.0,0.001394]
[1731277605710,0.123167,81190.0,81189.0,0.006154]
[1731277605925,0.00024,81229.0,81200.0,0.00476]
[1731277606160,0.30771382,81205.0,81200.0,0.00476]
[1731277606369,0.30771382,81205.0,81195.0,0.24632]
[1731277606370,0.18456882,81233.0,81204.0,0.00476]
[1731277606591,0.43077582,81233.0,81213.0,0.00476]
[1731277606799,0.30768482,81224.0,81222.0,0.00476]
[1731277607136,0.18456882,81233.0,81230.0,0.00476]
[1731277607137,0.201904,81232.0,81230.0,0.00476]
[1731277607312,0.123105,81231.0,81230.0,0.00476]
[1731277607994,0.0491,81234.0,81231.0,0.00476]
[1731277608203,0.30765782,81242.0,81236.0,0.00476]
[1731277608353,0.18456882,81242.0,81236.0,0.00476]
[1731277608581,0.123096,81238.0,81236.0,0.00476]
[1731277608924,0.246159,81249.0,81236.0,0.00476]
[1731277609161,0.123108,81229.0,81228.0,0.00476]
[1731277609582,0.12594221,81248.0,81228.0,0.00476]
[1731277609583,0.246208,81232.0,81228.0,0.00476]
[1731277609797,0.123108,81229.0,81228.0,0.00476]
[1731277610172,0.246162,81247.0,81224.0,0.00476]
[1731277610418,0.123108,81229.0,81228.0,0.00476]
[1731277611005,3.123108,81229.0,81228.0,0.00476]
[1731277611769,3.123108,81229.0,81222.0,0.00476]
[1731277611770,3.0,81229.0,81222.0,0.00476]
[1731277611967,3.0,81229.0,81217.0,0.00476]
[1731277612188,3.0,81229.0,81209.0,0.005]
[1731277612189,3.0,81229.0,81219.0,0.00476]
[1731277612514,0.123122,81221.0,81219.0,0.00476]
[1731277612672,0.123122,81220.0,81219.0,0.00476]
[1731277613283,3.0,81229.0,81219.0,0.00476]
[1731277613444,0.123116,81224.0,81223.0,0.00476]
[1731277613617,3.0,81229.0,81223.0,0.00476]
[1731277613995,0.246221,81228.0,81225.0,0.03472769]
[1731277614145,3.0,81229.0,81227.0,0.03472769]
[1731277614348,0.12311,81228.0,81227.0,0.03948769]
[1731277614570,0.12311,81228.0,81227.0,0.00476]
[1731277614872,3.0,81229.0,81227.0,0.05685154]
[1731277615048,0.12311,81228.0,81227.0,0.05685154]
[1731277615253,0.12311,81228.0,81227.0,0.00476]
[1731277615469,3.0,81229.0,81226.0,0.05209154]
[1731277615680,3.0,81229.0,81194.0,0.1]
[1731277615681,0.123119,81222.0,81214.0,0.03489244]
[1731277615879,0.123129,81215.0,81214.0,0.03490439]
[1731277616097,0.123127,81217.0,81216.0,0.00476]
[1731277616263,0.123127,81217.0,81216.0,0.03966183]
[1731277616465,0.123127,81217.0,81216.0,0.00476]
[1731277616686,0.123127,81217.0,81208.0,0.08681924]
[1731277616687,0.0479,81224.0,81218.0,0.00476]
[1731277616918,0.00024,81244.0,81208.0,0.24628]
[1731277616919,0.18456882,81239.0,81228.0,0.00476]
[1731277617084,0.0479,81247.0,81228.0,0.12787]
[1731277617085,0.18456882,81241.0,81228.0,0.12787]
[1731277617298,0.18456882,81241.0,81227.0,0.06945539]
[1731277617465,3.123108,81229.0,81228.0,0.06976129]
[1731277617684,3.0,81229.0,81227.0,0.03489202]
[1731277617864,3.0,81229.0,81222.0,0.03489349]
[1731277617865,0.246228,81226.0,81222.0,0.03489349]
[1731277618073,0.246223,81227.0,81218.0,0.03965349]
[1731277618284,0.105763,81219.0,81218.0,0.00476]
[1731277619131,0.123123,81219.0,81218.0,0.00476]
[1731277619304,0.369334,81227.0,81218.0,0.00476]
[1731277619483,0.123123,81219.0,81218.0,0.00476]
[1731277620314,0.12594221,81219.0,81202.0,0.006446]
[1731277620481,0.246246,81220.0,81202.0,0.006446]
[1731277620482,0.123148,81203.0,81202.0,0.001686]
[1731277620716,0.24909021,81203.0,81202.0,0.001686]
[1731277620914,0.123167,81190.0,81186.0,0.00476]
[1731277621155,0.123167,81190.0,81171.0,0.005]
[1731277621156,0.123167,81190.0,81179.0,0.00476]
[1731277621413,0.123167,81190.0,81184.0,0.00476]
[1731277621542,0.24910921,81190.0,81179.0,0.00476]
[1731277621752,0.24910921,81190.0,81176.0,0.00476]
[1731277622353,0.24910921,81190.0,81174.0,0.00476]
[1731277622550,0.24910921,81190.0,81172.0,0.00476]
[1731277623427,0.24910921,81190.0,81171.0,0.00476]
[1731277624073,0.24910921,81190.0,81167.0,0.00476]
[1731277624260,0.24910921,81190.0,81171.0,0.00476]
[1731277624499,0.24910921,81190.0,81167.0,0.00476]
[1731277624695,0.24910921,81190.0,81159.0,0.005]
[1731277624696,0.24910921,81190.0,81169.0,0.00476]
[1731277624922,0.24910921,81190.0,81167.0,0.00476]
[1731277626146,0.24910921,81190.0,81168.0,0.00878567]
[1731277626355,0.24910921,81190.0,81167.0,0.00476]
[1731277627819,0.123167,81190.0,81182.0,0.00476]
[1731277628706,0.18456882,81196.0,81183.0,0.01354567]
[1731277628920,0.123167,81190.0,81184.0,0.00878567]
[1731277629134,0.24910921,81190.0,81175.0,0.01354567]
[1731277629562,0.24910921,81190.0,81176.0,0.00878567]
[1731277629998,0.24910921,81190.0,81167.0,0.00769698]
[1731277629999,0.24910921,81190.0,81178.0,0.00476]
[1731277630200,0.24910921,81190.0,81179.0,0.00476]
[1731277630691,0.24910921,81190.0,81180.0,0.00878567]
[1731277630929,0.24910921,81190.0,81179.0,0.00476]
[1731277631363,0.24910921,81190.0,81178.0,0.00476]
[1731277631576,0.24910921,81190.0,81177.0,0.00476]
[1731277631774,0.24910921,81190.0,81178.0,0.00878567]
[1731277632059,0.24934921,81190.0,81178.0,0.00878567]
[1731277632257,0.25434921,81190.0,81174.0,0.00878567]
[1731277632415,0.25434921,81190.0,81164.0,0.00878567]
[1731277633010,0.25434921,81190.0,81163.0,0.00476]
[1731277633421,0.25434921,81190.0,81164.0,0.00878567]
[1731277633595,0.24910921,81190.0,81179.0,0.00476]
[1731277633808,0.24934921,81190.0,81164.0,0.00476]
[1731277634030,0.24934921,81190.0,81165.0,0.00879693]
[1731277634249,0.24934921,81190.0,81157.0,0.001394]
[1731277634250,0.25934921,81190.0,81166.0,0.00879693]
[1731277634405,0.00024,81185.0,81159.0,0.01355693]
[1731277634612,0.00024,81185.0,81160.0,0.00879693]
[1731277634613,0.123211,81161.0,81160.0,0.00879693]
[1731277634818,0.246411,81165.0,81159.0,0.00476]
[1731277635055,0.123216,81158.0,81157.0,0.001394]
[1731277635272,0.24915821,81158.0,81157.0,0.001394]
[1731277636035,0.123211,81162.0,81160.0,0.00476]
[1731277636246,0.123216,81158.0,81157.0,0.001394]
[1731277636446,0.24915821,81158.0,81157.0,0.001394]
[1731277637003,0.24919821,81158.0,81157.0,0.001394]
[1731277638124,0.24919821,81158.0,81157.0,0.00082925]
[1731277640184,0.123233,81147.0,81146.0,0.01495815]
[1731277640542,0.24917521,81147.0,81146.0,0.01495815]
[1731277641925,0.30087521,81147.0,81146.0,0.01495815]
[1731277642127,3.30087521,81147.0,81146.0,0.01495815]
[1731277642330,3.30111521,81147.0,81146.0,0.01495815]
[1731277642751,3.30611521,81147.0,81146.0,0.01495815]
[1731277642944,3.29611521,81147.0,81146.0,0.01495815]
[1731277643404,3.30611521,81147.0,81146.0,0.01495815]
[1731277643769,3.0,81147.0,81146.0,0.13819215]
[1731277644189,3.12594221,81147.0,81146.0,0.02376777]
[1731277644401,3.24917521,81147.0,81146.0,0.01495815]
[1731277645368,3.12594221,81147.0,81124.0,0.08787059]
[1731277645576,0.12594221,81146.0,81121.0,0.08787059]
[1731277645707,0.12594221,81146.0,81120.0,0.001392]
[1731277645708,0.18456882,81145.0,81120.0,0.001392]
[1731277645926,0.12822657,81143.0,81120.0,0.00909316]
[1731277646128,0.12822657,81143.0,81120.0,0.001392]
[1731277646340,0.123272,81121.0,81120.0,0.001392]
[1731277646539,0.246528,81127.0,81120.0,0.001392]
[1731277646741,0.12594221,81126.0,81120.0,0.001392]
[1731277646966,0.123272,81121.0,81120.0,0.001392]
[1731277647209,0.24921421,81121.0,81120.0,0.001392]
[1731277648087,0.123292,81108.0,81095.0,0.00271564]
[1731277648292,0.24923421,81108.0,81090.0,0.125]
[1731277648507,0.123318,81091.0,81090.0,0.001682]
[1731277648857,0.24926021,81091.0,81090.0,0.001682]
[1731277650130,0.00228436,81113.0,81092.0,0.123315]
[1731277650316,0.18456882,81099.0,81090.0,0.001682]
[1731277650466,3.0,81091.0,81090.0,0.125]
[1731277650668,3.0,81091.0,81090.0,0.001682]
[1731277650922,3.24926021,81091.0,81090.0,0.001682]
[1731277651078,3.0,81091.0,81090.0,0.00439764]
[1731277652535,3.24926021,81091.0,81090.0,0.001682]
[1731277654557,3.29726021,81091.0,81090.0,0.001682]
[1731277654773,0.00228436,81077.0,81068.0,0.001396]
[1731277654943,0.12564036,81066.0,81065.0,0.00669928]
[1731277655155,0.36158257,81066.0,81065.0,0.00669928]
[1731277655358,0.36158257,81066.0,81058.0,0.02036883]
[1731277655359,0.23564136,81065.0,81058.0,0.02036883]
[1731277655540,0.246683,81076.0,81058.0,0.02036883]
[1731277655541,0.123355,81067.0,81059.0,0.123366]
[1731277655749,0.12594221,81066.0,81054.0,0.246748]
[1731277656274,0.36158357,81065.0,81038.0,0.001394]
[1731277656473,0.123397,81039.0,81038.0,0.001394]
[1731277656676,0.12594221,81039.0,81038.0,0.001394]
[1731277656886,0.24933921,81039.0,81038.0,0.001394]
[1731277657810,0.29713921,81039.0,81038.0,0.001394]
[1731277658617,0.123423,81022.0,81004.0,0.005]
[1731277658794,0.246838,81025.0,81010.0,0.246883]
[1731277659017,0.12594221,81024.0,81015.0,0.023]
[1731277659226,0.123421,81023.0,81016.0,0.123432]
[1731277659448,0.24936521,81022.0,81011.0,0.24688]
[1731277659605,0.12594221,81022.0,81016.0,0.123431]
[1731277659809,0.12594221,81022.0,81004.0,0.005]
[1731277660359,0.18456882,81019.0,81002.0,0.00139]
[1731277660483,0.18456882,81028.0,81002.0,0.124843]
[1731277660484,0.12343,81017.0,81002.0,0.124843]
[1731277660683,0.123438,81013.0,81003.0,0.246904]
[1731277660928,0.24938021,81012.0,81004.0,0.123449]
[1731277661140,0.12594221,81012.0,80991.0,0.005]
[1731277661316,0.12594221,81012.0,80978.0,0.05758473]
[1731277661317,0.12594221,81012.0,80980.0,0.005]
[1731277661558,0.12594221,81012.0,80995.0,0.005]
[1731277661756,0.12594221,81012.0,81011.0,0.12344]
[1731277661955,0.12344,81011.0,80998.0,0.005]
[1731277662156,0.12594221,81010.0,81005.0,0.123449]
[1731277662372,0.12594221,81010.0,80997.0,0.246921]
[1731277662529,0.12594221,81010.0,80999.0,0.246916]